[Event "Titled Tuesday Blitz July 4 Early 2023"]
[White "Mendez, Ruddy Antonio"]
[Black "HeinichessPY"]
[WhiteFideId "6403387"]
[WhiteElo "2241"]
[BlackElo "2140"]
[Result "0-1"]
[Round "11"]
[TimeControl "180+2"]
[Date "2023.07.04"]
[WhiteClock "0:01:56"]
[BlackClock "0:00:49"]
[Board "150"]

1. d4 {[%clk 0:03:00]}  Nf6 {[%clk 0:02:59]} 2. c4 {[%clk 0:03:00]}  c5 {[%clk 0:02:59]} 3. d5 {[%clk 0:03:00]}  b5 {[%clk 0:03:00]} 4. cxb5 {[%clk 0:03:00]}  a6 {[%clk 0:03:00]} 5. b6 {[%clk 0:03:00]}  d6 {[%clk 0:02:59]} 6. Nc3 {[%clk 0:03:00]}  g6 {[%clk 0:02:59]} 7. Nf3 {[%clk 0:03:01]}  Bg7 {[%clk 0:02:59]} 8. g3 {[%clk 0:03:01]}  O-O {[%clk 0:02:59]} 9. Bg2 {[%clk 0:03:02]}  Nbd7 {[%clk 0:02:59]} 10. O-O {[%clk 0:03:02]}  Nxb6 {[%clk 0:02:46]} 11. Nd2 {[%clk 0:02:56]}  c4 {[%clk 0:02:32]} 12. a4 {[%clk 0:02:46]}  a5 {[%clk 0:02:22]} 13. Nf3 {[%clk 0:02:46]}  Bb7 {[%clk 0:02:09]} 14. e4 {[%clk 0:02:46]}  Nfd7 {[%clk 0:02:02]} 15. Bf4 {[%clk 0:02:39]}  Nc5 {[%clk 0:02:01]} 16. Nd4 {[%clk 0:02:36]}  Nd3 {[%clk 0:01:56]} 17. Bc1 {[%clk 0:02:36]}  Bxd4 {[%clk 0:01:54]} 18. Nb5 {[%clk 0:02:33]}  Bc5 {[%clk 0:01:48]} 19. Qc2 {[%clk 0:02:33]}  Nxc1 {[%clk 0:01:31]} 20. Raxc1 {[%clk 0:02:30]}  e6 {[%clk 0:01:30]} 21. Rfd1 {[%clk 0:02:29]}  exd5 {[%clk 0:01:29]} 22. exd5 {[%clk 0:02:30]}  Re8 {[%clk 0:01:23]} 23. b3 {[%clk 0:02:30]}  cxb3 {[%clk 0:01:16]} 24. Qxb3 {[%clk 0:02:30]}  Qf6 {[%clk 0:01:16]} 25. Rf1 {[%clk 0:02:30]}  Re2 {[%clk 0:01:13]} 26. Bf3 {[%clk 0:02:25]}  Rb2 {[%clk 0:01:01]} 27. Qd3 {[%clk 0:02:24]}  Ba6 {[%clk 0:00:51]} 28. Kg2 {[%clk 0:01:56]}  Nxa4 {[%clk 0:00:49]} 0-1


[Site "https://www.chess.com"]

[Event "Titled Tuesday Blitz July 4 Early 2023"]
[White "Semenova, Alina"]
[Black "Peiris, T G M"]
[WhiteFideId "24113875"]
[BlackFideId "9901310"]
[WhiteElo "2062"]
[BlackElo "2208"]
[Result "1/2-1/2"]
[Round "11"]
[TimeControl "180+2"]
[Date "2023.07.04"]
[WhiteClock "0:00:02"]
[BlackClock "0:00:07"]
[Board "152"]

1. e4 {[%clk 0:03:00]}  c5 {[%clk 0:02:59]} 2. Nf3 {[%clk 0:02:59]}  Nc6 {[%clk 0:02:58]} 3. d4 {[%clk 0:03:00]}  cxd4 {[%clk 0:02:59]} 4. Nxd4 {[%clk 0:03:01]}  Nf6 {[%clk 0:02:59]} 5. Nc3 {[%clk 0:03:01]}  d6 {[%clk 0:02:59]} 6. f3 {[%clk 0:03:00]}  g6 {[%clk 0:02:59]} 7. Be3 {[%clk 0:03:00]}  Bg7 {[%clk 0:03:00]} 8. Qd2 {[%clk 0:03:01]}  O-O {[%clk 0:03:00]} 9. O-O-O {[%clk 0:03:01]}  a6 {[%clk 0:03:00]} 10. Kb1 {[%clk 0:03:01]}  Qc7 {[%clk 0:02:53]} 11. Bh6 {[%clk 0:03:01]}  b5 {[%clk 0:02:19]} 12. Bxg7 {[%clk 0:02:58]}  Kxg7 {[%clk 0:02:19]} 13. h4 {[%clk 0:02:58]}  h5 {[%clk 0:02:19]} 14. Rg1 {[%clk 0:02:57]}  Nxd4 {[%clk 0:02:14]} 15. Qxd4 {[%clk 0:02:57]}  Qc5 {[%clk 0:02:15]} 16. Nd5 {[%clk 0:02:48]}  Qxd4 {[%clk 0:02:13]} 17. Rxd4 {[%clk 0:02:47]}  Nxd5 {[%clk 0:02:13]} 18. exd5 {[%clk 0:02:48]}  Re8 {[%clk 0:02:03]} 19. g4 {[%clk 0:02:40]}  hxg4 {[%clk 0:02:00]} 20. fxg4 {[%clk 0:02:40]}  Bb7 {[%clk 0:01:55]} 21. h5 {[%clk 0:02:36]}  Rh8 {[%clk 0:01:42]} 22. Bd3 {[%clk 0:02:21]}  Rac8 {[%clk 0:01:31]} 23. hxg6 {[%clk 0:02:16]}  fxg6 {[%clk 0:01:30]} 24. Re1 {[%clk 0:02:15]}  Rc7 {[%clk 0:01:22]} 25. b3 {[%clk 0:01:55]}  Bc8 {[%clk 0:01:19]} 26. Rde4 {[%clk 0:01:51]}  Re8 {[%clk 0:01:07]} 27. Rf4 {[%clk 0:01:36]}  Rf8 {[%clk 0:01:06]} 28. Rxf8 {[%clk 0:01:35]}  Kxf8 {[%clk 0:01:07]} 29. Bxg6 {[%clk 0:01:36]}  Bxg4 {[%clk 0:01:07]} 30. Rf1+ {[%clk 0:01:30]}  Kg7 {[%clk 0:01:05]} 31. Bd3 {[%clk 0:01:24]}  Bc8 {[%clk 0:01:01]} 32. c4 {[%clk 0:01:21]}  bxc4 {[%clk 0:00:56]} 33. bxc4 {[%clk 0:01:22]}  a5 {[%clk 0:00:56]} 34. Kb2 {[%clk 0:01:20]}  Bb7 {[%clk 0:00:39]} 35. Kb3 {[%clk 0:01:13]}  Ba6 {[%clk 0:00:31]} 36. Rf4 {[%clk 0:01:08]}  Bc8 {[%clk 0:00:19]} 37. a3 {[%clk 0:00:49]}  Rc5 {[%clk 0:00:19]} 38. Re4 {[%clk 0:00:46]}  Kf6 {[%clk 0:00:18]} 39. Rf4+ {[%clk 0:00:41]}  Ke5 {[%clk 0:00:18]} 40. Re4+ {[%clk 0:00:41]}  Kf6 {[%clk 0:00:19]} 41. Be2 {[%clk 0:00:37]}  Bf5 {[%clk 0:00:18]} 42. Rf4 {[%clk 0:00:37]}  Ke5 {[%clk 0:00:18]} 43. Rh4 {[%clk 0:00:33]}  e6 {[%clk 0:00:18]} 44. Bf3 {[%clk 0:00:24]}  Bd3 {[%clk 0:00:08]} 45. dxe6 {[%clk 0:00:15]}  Kxe6 {[%clk 0:00:09]} 46. Bd5+ {[%clk 0:00:13]}  Ke5 {[%clk 0:00:09]} 47. Rh5+ {[%clk 0:00:12]}  Kd4 {[%clk 0:00:09]} 48. Rh4+ {[%clk 0:00:10]}  Ke3 {[%clk 0:00:09]} 49. Rg4 {[%clk 0:00:04]}  Kd2 {[%clk 0:00:09]} 50. Rg2+ {[%clk 0:00:04]}  Ke3 {[%clk 0:00:09]} 51. Rg3+ {[%clk 0:00:03]}  Ke2 {[%clk 0:00:09]} 52. Rg2+ {[%clk 0:00:04]}  Ke3 {[%clk 0:00:08]} 53. Rg3+ {[%clk 0:00:04]}  Kf4 {[%clk 0:00:08]} 54. Rf3+ {[%clk 0:00:04]}  Ke5 {[%clk 0:00:08]} 55. Rh3 {[%clk 0:00:04]}  Kd4 {[%clk 0:00:08]} 56. Rh4+ {[%clk 0:00:05]}  Ke3 {[%clk 0:00:08]} 57. Rh3+ {[%clk 0:00:05]}  Kd2 {[%clk 0:00:08]} 58. Rh2+ {[%clk 0:00:05]}  Ke3 {[%clk 0:00:07]} 59. Rh3+ {[%clk 0:00:02]}  Kd4 {[%clk 0:00:07]} 60. Rh4+ {[%clk 0:00:02]} 1/2-1/2


[Site "https://www.chess.com"]

[Event "Titled Tuesday Blitz July 4 Early 2023"]
[White "Selkirk, Rebecca"]
[Black "Gavarrete, Nahun"]
[WhiteFideId "14306514"]
[BlackFideId "8400709"]
[WhiteElo "1980"]
[BlackElo "2343"]
[Result "1-0"]
[Round "11"]
[TimeControl "180+2"]
[Date "2023.07.04"]
[WhiteClock "0:00:31"]
[BlackClock "0:00:00"]
[Board "156"]

1. e4 {[%clk 0:03:00]}  e6 {[%clk 0:02:55]} 2. d4 {[%clk 0:03:00]}  d5 {[%clk 0:02:53]} 3. e5 {[%clk 0:03:00]}  c5 {[%clk 0:02:53]} 4. c3 {[%clk 0:03:01]}  Nc6 {[%clk 0:02:52]} 5. Nf3 {[%clk 0:03:01]}  Qb6 {[%clk 0:02:37]} 6. Bd3 {[%clk 0:03:00]}  Bd7 {[%clk 0:02:28]} 7. dxc5 {[%clk 0:02:57]}  Bxc5 {[%clk 0:02:25]} 8. O-O {[%clk 0:02:57]}  a5 {[%clk 0:02:17]} 9. Nbd2 {[%clk 0:02:50]}  Nge7 {[%clk 0:02:08]} 10. c4 {[%clk 0:02:28]}  O-O {[%clk 0:01:42]} 11. b3 {[%clk 0:01:54]}  Ng6 {[%clk 0:01:22]} 12. Bb2 {[%clk 0:01:47]}  Rad8 {[%clk 0:01:17]} 13. cxd5 {[%clk 0:01:47]}  exd5 {[%clk 0:01:17]} 14. Rc1 {[%clk 0:01:36]}  Rfe8 {[%clk 0:01:00]} 15. Re1 {[%clk 0:01:35]}  Bxf2+ {[%clk 0:00:59]} 16. Kh1 {[%clk 0:01:35]}  Bxe1 {[%clk 0:01:00]} 17. Qxe1 {[%clk 0:01:36]}  a4 {[%clk 0:00:49]} 18. Qg3 {[%clk 0:01:34]}  axb3 {[%clk 0:00:48]} 19. Nxb3 {[%clk 0:01:31]}  Qe3 {[%clk 0:00:34]} 20. Bb1 {[%clk 0:01:16]}  Ncxe5 {[%clk 0:00:19]} 21. Nxe5 {[%clk 0:01:01]}  Nxe5 {[%clk 0:00:18]} 22. Re1 {[%clk 0:01:02]}  Qxg3 {[%clk 0:00:18]} 23. hxg3 {[%clk 0:01:01]}  Nc4 {[%clk 0:00:16]} 24. Rxe8+ {[%clk 0:00:53]}  Rxe8 {[%clk 0:00:15]} 25. Bc3 {[%clk 0:00:51]}  Re2 {[%clk 0:00:12]} 26. Kh2 {[%clk 0:00:50]}  Ne3 {[%clk 0:00:08]} 27. Bd3 {[%clk 0:00:47]}  Rxa2 {[%clk 0:00:05]} 28. Nc5 {[%clk 0:00:43]}  Ra3 {[%clk 0:00:05]} 29. Nxd7 {[%clk 0:00:35]}  Rxc3 {[%clk 0:00:05]} 30. Be2 {[%clk 0:00:34]}  Rc2 {[%clk 0:00:01]} 31. Bf3 {[%clk 0:00:35]}  f6 {[%clk 0:00:00]} 32. Nb6 {[%clk 0:00:31]} 1-0


[Site "https://www.chess.com"]

[Event "Titled Tuesday Blitz July 4 Early 2023"]
[White "NtcPou"]
[Black "Cramling Bellon, Anna"]
[BlackFideId "32009232"]
[WhiteElo "2018"]
[BlackElo "2055"]
[Result "0-1"]
[Round "11"]
[TimeControl "180+2"]
[Date "2023.07.04"]
[WhiteClock "0:00:03"]
[BlackClock "0:00:04"]
[Board "157"]

1. e4 {[%clk 0:03:00]}  c5 {[%clk 0:02:57]} 2. Nf3 {[%clk 0:03:00]}  e6 {[%clk 0:02:54]} 3. g3 {[%clk 0:03:00]}  d5 {[%clk 0:02:54]} 4. exd5 {[%clk 0:03:00]}  exd5 {[%clk 0:02:55]} 5. Bg2 {[%clk 0:02:59]}  Nf6 {[%clk 0:02:55]} 6. d4 {[%clk 0:02:59]}  Nc6 {[%clk 0:02:54]} 7. O-O {[%clk 0:02:59]}  Be7 {[%clk 0:02:50]} 8. dxc5 {[%clk 0:02:56]}  O-O {[%clk 0:02:50]} 9. a3 {[%clk 0:02:55]}  Bxc5 {[%clk 0:02:49]} 10. b4 {[%clk 0:02:54]}  Be7 {[%clk 0:02:49]} 11. Bb2 {[%clk 0:02:48]}  Be6 {[%clk 0:02:47]} 12. Nd4 {[%clk 0:02:33]}  Rc8 {[%clk 0:02:45]} 13. Nd2 {[%clk 0:02:31]}  Qb6 {[%clk 0:02:33]} 14. N2b3 {[%clk 0:02:25]}  Rfd8 {[%clk 0:02:23]} 15. Re1 {[%clk 0:02:25]}  Nxd4 {[%clk 0:02:09]} 16. Nxd4 {[%clk 0:02:23]}  Ne4 {[%clk 0:01:50]} 17. Nxe6 {[%clk 0:01:25]}  Qxe6 {[%clk 0:01:46]} 18. Qe2 {[%clk 0:01:10]}  f5 {[%clk 0:01:34]} 19. Kh1 {[%clk 0:01:09]}  Qb6 {[%clk 0:01:26]} 20. f3 {[%clk 0:01:03]}  Nf2+ {[%clk 0:01:25]} 21. Kg1 {[%clk 0:00:53]}  Nd3+ {[%clk 0:00:40]} 22. Kh1 {[%clk 0:00:44]}  Nf2+ {[%clk 0:00:18]} 23. Kg1 {[%clk 0:00:44]}  Nd3+ {[%clk 0:00:06]} 24. Kf1 {[%clk 0:00:44]}  Nxb2 {[%clk 0:00:05]} 25. Qxe7 {[%clk 0:00:44]}  Re8 {[%clk 0:00:05]} 26. Qxe8+ {[%clk 0:00:43]}  Rxe8 {[%clk 0:00:05]} 27. Rxe8+ {[%clk 0:00:44]}  Kf7 {[%clk 0:00:06]} 28. Rae1 {[%clk 0:00:44]}  Nc4 {[%clk 0:00:06]} 29. f4 {[%clk 0:00:38]}  Nd2+ {[%clk 0:00:04]} 30. Ke2 {[%clk 0:00:33]}  Kxe8 {[%clk 0:00:05]} 31. Kxd2+ {[%clk 0:00:34]}  Kf7 {[%clk 0:00:05]} 32. Bxd5+ {[%clk 0:00:34]}  Kf8 {[%clk 0:00:05]} 33. c4 {[%clk 0:00:32]}  Qd4+ {[%clk 0:00:06]} 34. Kc2 {[%clk 0:00:33]}  Qf2+ {[%clk 0:00:06]} 35. Kd1 {[%clk 0:00:32]}  Qxh2 {[%clk 0:00:06]} 36. Re6 {[%clk 0:00:29]}  Qxg3 {[%clk 0:00:06]} 37. Rd6 {[%clk 0:00:28]}  Qxf4 {[%clk 0:00:05]} 38. Rd8+ {[%clk 0:00:28]}  Ke7 {[%clk 0:00:06]} 39. Rg8 {[%clk 0:00:27]}  Qd4+ {[%clk 0:00:04]} 40. Kc2 {[%clk 0:00:26]}  f4 {[%clk 0:00:04]} 41. Rb8 {[%clk 0:00:23]}  Qf2+ {[%clk 0:00:03]} 42. Kb3 {[%clk 0:00:23]}  Qe3+ {[%clk 0:00:02]} 43. Ka4 {[%clk 0:00:20]}  g5 {[%clk 0:00:03]} 44. Rxb7+ {[%clk 0:00:20]}  Kd6 {[%clk 0:00:03]} 45. Rxh7 {[%clk 0:00:19]}  g4 {[%clk 0:00:03]} 46. Rh6+ {[%clk 0:00:16]}  Kc7 {[%clk 0:00:04]} 47. Rh7+ {[%clk 0:00:16]}  Kd8 {[%clk 0:00:02]} 48. Rh8+ {[%clk 0:00:15]}  Kd7 {[%clk 0:00:01]} 49. Rh7+ {[%clk 0:00:15]}  Ke8 {[%clk 0:00:01]} 50. Rh6 {[%clk 0:00:16]}  Kf8 {[%clk 0:00:01]} 51. Rh8+ {[%clk 0:00:16]}  Kg7 {[%clk 0:00:01]} 52. Rg8+ {[%clk 0:00:16]}  Kh7 {[%clk 0:00:02]} 53. Rxg4 {[%clk 0:00:17]}  f3 {[%clk 0:00:02]} 54. Rh4+ {[%clk 0:00:17]}  Kg6 {[%clk 0:00:02]} 55. Rg4+ {[%clk 0:00:18]}  Kf5 {[%clk 0:00:02]} 56. Rg8 {[%clk 0:00:16]}  f2 {[%clk 0:00:01]} 57. Rf8+ {[%clk 0:00:16]}  Kg5 {[%clk 0:00:01]} 58. Rg8+ {[%clk 0:00:17]}  Kh6 {[%clk 0:00:01]} 59. Rh8+ {[%clk 0:00:17]}  Kg7 {[%clk 0:00:01]} 60. Rg8+ {[%clk 0:00:17]}  Kh7 {[%clk 0:00:02]} 61. Rf8 {[%clk 0:00:17]}  Qe2 {[%clk 0:00:02]} 62. Rf7+ {[%clk 0:00:15]}  Kh8 {[%clk 0:00:02]} 63. Bg2 {[%clk 0:00:07]}  Qe8+ {[%clk 0:00:02]} 64. Bc6 {[%clk 0:00:06]}  Qxf7 {[%clk 0:00:02]} 65. b5 {[%clk 0:00:07]}  f1=Q {[%clk 0:00:02]} 66. Ka5 {[%clk 0:00:07]}  Q1xc4 {[%clk 0:00:03]} 67. Ka6 {[%clk 0:00:07]}  Qxc6+ {[%clk 0:00:03]} 68. bxc6 {[%clk 0:00:07]}  Qd5 {[%clk 0:00:03]} 69. Kb7 {[%clk 0:00:06]}  a5 {[%clk 0:00:03]} 70. a4 {[%clk 0:00:06]}  Qb3+ {[%clk 0:00:02]} 71. Kc8 {[%clk 0:00:04]}  Qxa4 {[%clk 0:00:02]} 72. c7 {[%clk 0:00:04]}  Qc6 {[%clk 0:00:02]} 73. Kb8 {[%clk 0:00:04]}  a4 {[%clk 0:00:03]} 74. c8=Q+ {[%clk 0:00:04]}  Qxc8+ {[%clk 0:00:03]} 75. Kxc8 {[%clk 0:00:03]}  a3 {[%clk 0:00:04]} 0-1


[Site "https://www.chess.com"]